bitfinex-derivatives/quotes_BTCF0:USTF0_20251219
["timestamp","ask_amount","ask_price","bid_price","bid_amount"]
[1766124591232,0.0114783,87178.0,87154.0,0.0114813]
[1766124591528,0.19774059,87170.0,87153.0,0.00576]
[1766124591733,0.19774059,87170.0,87154.0,0.00364]
[1766124592323,0.19774059,87164.0,87154.0,0.00364]
[1766124596633,0.00576,87182.0,87155.0,2.4116]
[1766124596934,0.00576,87182.0,87161.0,0.0114804]
[1766124597133,0.19774059,87180.0,87163.0,0.0114801]
[1766124597338,0.19774059,87180.0,87166.0,0.0114797]
[1766124600128,0.19774059,87180.0,87162.0,0.00576]
[1766124600440,0.19774059,87180.0,87163.0,0.01148]
[1766124600742,0.19774059,87180.0,87163.0,0.00576]
[1766124600940,0.19774059,87173.0,87164.0,0.00576]
[1766124601142,0.19774059,87180.0,87164.0,0.00576]
[1766124602943,0.19774059,87180.0,87159.0,0.0114806]
[1766124603336,0.19774059,87180.0,87160.0,0.00364]
[1766124603938,0.19774059,87180.0,87161.0,0.0114803]
[1766124606351,0.01740982,87182.0,87160.0,0.00364]
[1766124606647,0.19774059,87180.0,87162.0,0.0114803]
[1766124607942,0.19774059,87180.0,87160.0,0.00364]
[1766124608534,0.19774059,87170.0,87160.0,0.00364]
[1766124610440,0.19774059,87170.0,87154.0,0.0114812]
[1766124610640,0.19774059,87170.0,87155.0,2.41704]
[1766124610841,0.20350059,87170.0,87156.0,0.011481]
[1766124612048,0.20350059,87170.0,87155.0,2.41704]
[1766124612238,0.20350059,87170.0,87156.0,0.011481]
[1766124613543,0.20350059,87170.0,87155.0,2.4285212]
[1766124613944,0.20350059,87170.0,87155.0,2.41704]
[1766124614150,0.0114794,87169.0,87150.0,0.00017212]
[1766124614346,0.0114794,87169.0,87151.0,0.00576]
[1766124614546,0.19774059,87161.0,87151.0,0.00576]
[1766124615350,0.00576,87166.0,87152.0,0.0114815]
[1766124615543,0.00576,87166.0,87154.0,0.0114812]
[1766124617049,0.00576,87166.0,87151.0,0.0172417]
[1766124621965,0.00576,87166.0,87154.0,0.0114813]
[1766124623760,0.00576,87166.0,87158.0,0.0114807]
[1766124628256,0.00576,87166.0,87157.0,0.00576]
[1766124629667,0.00017212,87182.0,87161.0,0.0114803]
[1766124629668,0.00576,87177.0,87161.0,0.0114803]
[1766124629871,0.00288,87177.0,87162.0,0.00576]
[1766124631058,0.19774059,87172.0,87162.0,0.00576]
[1766124631462,0.00288,87177.0,87162.0,0.00576]
[1766124631870,0.19765813,87172.0,87150.0,0.00017212]
[1766124632065,0.00576,87171.0,87151.0,0.0044]
[1766124638666,0.0172391,87171.0,87151.0,0.0044]
[1766124640488,0.0114799,87165.0,87151.0,0.0044]
[1766124640774,0.00576,87166.0,87151.0,0.0044]
[1766124640973,0.19765813,87161.0,87150.0,0.00017212]
[1766124641178,0.19765813,87161.0,87137.0,2.41136]
[1766124641179,0.0114814,87154.0,87137.0,2.41136]
[1766124641373,0.19765813,87150.0,87138.0,0.00576]
[1766124641570,0.00576,87152.0,87138.0,0.0172434]
[1766124641966,0.0114796,87168.0,87144.0,0.0114826]
[1766124642170,0.00017212,87165.0,87147.0,0.00017212]
[1766124643182,0.01165202,87165.0,87147.0,0.00017212]
[1766124643884,0.00017212,87165.0,87148.0,0.011482]
[1766124644183,0.00017212,87165.0,87147.0,0.00017212]
[1766124644500,0.0114801,87164.0,87147.0,0.00017212]
[1766124645177,0.00576,87163.0,87147.0,0.00017212]
[1766124645783,0.0114812,87156.0,87129.0,0.03057865]
[1766124645971,0.0114812,87156.0,87134.0,0.0114839]
[1766124646174,0.0114812,87156.0,87135.0,0.00576]
[1766124646572,0.0114812,87156.0,87136.0,0.0114837]
[1766124646984,0.00017212,87155.0,87137.0,0.00017212]
[1766124647481,0.00017212,87155.0,87138.0,0.0114834]
[1766124647684,0.00017212,87155.0,87141.0,0.011483]
[1766124647883,0.00017212,87155.0,87142.0,0.00576]
[1766124654688,0.00017212,87155.0,87137.0,0.00017212]
[1766124654991,0.19765813,87152.0,87137.0,0.00017212]
[1766124655194,0.19765813,87152.0,87137.0,0.00593212]
[1766124655893,0.00576,87152.0,87137.0,0.00593212]
[1766124660700,0.00576,87152.0,87138.0,0.0114834]
[1766124664999,0.00017212,87155.0,87138.0,0.0114834]
[1766124668502,0.00017212,87155.0,87137.0,0.00593212]
[1766124669491,0.00017212,87155.0,87137.0,0.00017212]
[1766124669696,0.19765813,87150.0,87137.0,0.00017212]
[1766124670401,0.00017212,87155.0,87137.0,0.00017212]
[1766124670905,0.19765813,87150.0,87137.0,0.00017212]
[1766124671090,0.00017212,87155.0,87137.0,0.00017212]
[1766124672396,0.00576,87154.0,87143.0,0.0114827]
[1766124673503,0.00576,87154.0,87140.0,0.0114832]
[1766124674107,0.00576,87154.0,87138.0,0.0114834]
[1766124674708,0.00576,87154.0,87137.0,0.00017212]
[1766124676806,0.00017212,87155.0,87137.0,0.00017212]
[1766124677003,0.00017212,87155.0,87122.0,0.03057865]
[1766124677210,0.19765813,87132.0,87116.0,0.03057865]
[1766124677409,0.0114852,87125.0,87115.0,0.00576]
[1766124677609,0.19765813,87126.0,87109.0,0.00576]
[1766124677805,0.011486,87119.0,87109.0,0.00576]
[1766124678000,0.19765813,87120.0,87109.0,0.00576]
[1766124678307,0.19765813,87120.0,87101.0,2.4118]
[1766124678505,0.19765813,87120.0,87102.0,0.00576]
[1766124680104,0.00576,87119.0,87102.0,0.00576]
[1766124680502,0.00576,87119.0,87102.0,0.0172482]
[1766124680709,0.00576,87119.0,87105.0,0.0114877]
[1766124681010,0.00576,87119.0,87103.0,0.011488]
[1766124683909,0.00576,87119.0,87102.0,0.00576]
[1766124684412,0.00576,87119.0,87103.0,0.00576]
[1766124684608,0.0114865,87115.0,87102.0,0.00576]
[1766124684803,0.017246,87119.0,87102.0,0.00576]
[1766124685014,0.19765813,87112.0,87090.0,0.0114897]
[1766124685214,0.0114864,87116.0,87090.0,0.0114897]
[1766124685215,0.0114868,87113.0,87097.0,0.00268]
[1766124685912,0.00012612,87112.0,87097.0,0.00268]
[1766124686113,0.00012612,87112.0,87097.0,0.0141688]
[1766124686515,0.00012612,87112.0,87097.0,0.00268]
[1766124686715,0.19765813,87110.0,87097.0,0.00268]
[1766124688818,0.00576,87111.0,87091.0,0.0114895]
[1766124689019,0.00017223,87110.0,87092.0,0.00576]
[1766124689323,0.00017223,87110.0,87093.0,0.0114894]
[1766124691809,0.19783036,87110.0,87093.0,0.0114894]
[1766124693019,0.00017223,87110.0,87093.0,0.0114894]
[1766124693221,0.19783036,87110.0,87093.0,0.0114894]
[1766124693421,0.19812425,87110.0,87093.0,0.0114894]
[1766124704014,0.00017223,87110.0,87092.0,0.00576]
[1766124704219,0.19812425,87110.0,87096.0,0.011489]
[1766124704525,0.19812425,87110.0,87093.0,0.0114894]
[1766124706534,0.19812425,87110.0,87092.0,0.0172494]
[1766124706735,0.19795202,87100.0,87091.0,0.00576]
[1766124707030,0.19795202,87100.0,87089.0,0.00576]
[1766124708223,0.19795202,87100.0,87087.0,0.0172502]
[1766124709137,0.19795202,87097.0,87080.0,0.0114911]
[1766124709324,0.19795202,87090.0,87081.0,0.00576]
[1766124709525,8.608e-05,87089.0,87074.0,2.41292]
[1766124709826,8.608e-05,87089.0,87076.0,0.0114916]
[1766124710130,8.608e-05,87089.0,87075.0,0.00576]
[1766124711732,8.608e-05,87089.0,87075.0,0.0172517]
[1766124712828,8.608e-05,87089.0,87078.0,0.0114913]
[1766124715436,8.608e-05,87089.0,87075.0,0.00576]
[1766124715730,8.608e-05,87089.0,87070.0,0.19795202]
[1766124715934,8.608e-05,87089.0,87071.0,0.00576]
[1766124718237,8.608e-05,87089.0,87078.0,0.0114913]
[1766124718438,8.608e-05,87089.0,87079.0,0.00576]
[1766124720531,8.608e-05,87089.0,87072.0,2.4132]
[1766124720835,8.608e-05,87089.0,87073.0,0.00576]
[1766124721137,0.00064142,87094.0,87085.0,0.0114903]
[1766124721340,0.06130612,87116.0,87084.0,0.00576]
[1766124721633,0.19795202,87110.0,87097.0,0.0114888]
[1766124721842,0.00576,87109.0,87099.0,0.0114885]
[1766124722226,4.004e-05,87108.0,87097.0,0.00576]
[1766124731944,0.19795202,87107.0,87097.0,0.00576]
[1766124732245,0.19795202,87107.0,87086.0,0.00576]
[1766124732246,0.00576,87106.0,87086.0,0.00576]
[1766124732447,0.19795202,87097.0,87086.0,0.00576]
[1766124732647,0.20371202,87097.0,87086.0,0.00576]
[1766124734052,0.20371202,87097.0,87083.0,0.00576]
[1766124734253,0.19795202,87093.0,87083.0,0.00576]
[1766124739258,0.00576,87094.0,87080.0,0.00576]
[1766124740660,0.19795202,87090.0,87080.0,0.00576]
[1766124742968,0.00576,87094.0,87081.0,0.011491]
[1766124743858,0.00576,87094.0,87080.0,0.00576]
[1766124744066,0.19795202,87091.0,87080.0,0.00576]
[1766124744564,0.19795202,87091.0,87080.0,0.017251]
[1766124744953,0.19795202,87091.0,87080.0,0.00576]
[1766124747760,0.19795202,87091.0,87073.0,0.011492]
[1766124747966,0.19795202,87090.0,87074.0,0.00576]
[1766124748360,0.19795202,87084.0,87074.0,0.00576]
[1766124748560,4.004e-05,87083.0,87074.0,0.00576]
[1766124749262,4.004e-05,87083.0,87074.0,0.0172518]
[1766124750964,4.004e-05,87083.0,87074.0,0.0114918]
[1766124751164,4.004e-05,87083.0,87075.0,0.00576]
[1766124753161,4.004e-05,87083.0,87076.0,0.0114916]
[1766124753365,4.004e-05,87083.0,87075.0,0.00576]
[1766124753769,4.004e-05,87083.0,87080.0,0.0114911]
[1766124754162,4e-08,87083.0,87080.0,0.0114911]
[1766124754362,0.00017223,87096.0,87080.0,0.0114911]
[1766124754562,0.00576,87095.0,87080.0,0.0114911]
[1766124755674,0.00017223,87096.0,87080.0,0.0114911]
[1766124755860,0.00576,87095.0,87080.0,0.0114911]
[1766124757161,0.00576,87095.0,87075.0,0.00576]
[1766124757577,0.00017223,87096.0,87085.0,0.0114904]
[1766124761173,0.00017223,87096.0,87087.0,0.01149]
[1766124763069,0.001,87105.0,87083.0,0.00576]
[1766124763381,0.001,87105.0,87091.0,0.0114895]
[1766124763877,0.001,87105.0,87089.0,0.00576]
[1766124764782,0.001,87105.0,87090.0,0.00576]
[1766124765279,0.06130612,87117.0,87090.0,0.00576]
[1766124765474,0.00576,87116.0,87090.0,0.20375296]
[1766124765982,0.0018,87124.0,87107.0,0.0114875]
[1766124766185,0.0018,87124.0,87108.0,0.00576]
[1766124767085,0.00017223,87125.0,87108.0,0.00576]
[1766124767473,0.00017223,87125.0,87109.0,0.0114872]
[1766124768574,0.00017223,87125.0,87112.0,0.0114868]
[1766124770085,0.00017223,87125.0,87113.0,0.00576]
[1766124770585,0.19799296,87123.0,87108.0,0.0114873]
[1766124770781,0.00017223,87125.0,87109.0,0.00576]
[1766124771185,0.19799296,87120.0,87109.0,0.00576]
[1766124772287,0.00017223,87125.0,87109.0,0.00576]
[1766124773484,0.00017223,87125.0,87109.0,0.0172471]
[1766124773891,0.00017223,87125.0,87109.0,0.0098871]
[1766124774190,0.00017223,87125.0,87110.0,0.00576]
[1766124777493,0.00017223,87125.0,87111.0,0.00576]
[1766124778891,0.00017223,87125.0,87112.0,0.00576]
[1766124780088,0.00017223,87125.0,87112.0,0.0172468]
[1766124780283,0.19799296,87122.0,87112.0,0.0172468]
[1766124780683,0.00017223,87125.0,87115.0,0.0114863]
[1766124781889,0.00229522,87138.0,87112.0,0.00576]
[1766124782195,0.00576,87137.0,87112.0,0.00576]
[1766124782396,0.00576,87137.0,87122.0,0.0114854]
[1766124784389,0.00576,87137.0,87120.0,0.00576]
[1766124785197,0.00246745,87138.0,87120.0,0.00576]
[1766124785396,0.00246745,87138.0,87121.0,0.0114857]
[1766124786200,0.00246745,87138.0,87123.0,0.0114853]
[1766124786595,0.00246745,87138.0,87120.0,0.0172458]
[1766124788001,0.00246745,87138.0,87120.0,0.0114858]
[1766124788191,0.00246745,87138.0,87110.0,0.19799296]
[1766124788192,0.00246745,87138.0,87121.0,0.00448]
[1766124791405,0.19799296,87140.0,87121.0,0.0159656]
[1766124792305,0.00017223,87139.0,87121.0,0.0159656]
[1766124792697,0.00017223,87139.0,87121.0,0.00448]
[1766124793497,0.19799296,87131.0,87108.0,0.0114873]
[1766124793795,0.00017223,87139.0,87107.0,0.00017223]
[1766124793796,0.19799296,87123.0,87107.0,0.00017223]
[1766124793990,0.0114855,87122.0,87107.0,0.00385223]
[1766124794194,0.19799296,87123.0,87107.0,0.00385223]
[1766124794802,0.19799296,87123.0,87107.0,0.01533973]
[1766124795400,0.19799296,87123.0,87107.0,0.00017223]
[1766124796996,0.19799296,87123.0,87102.0,0.0114881]
[1766124796997,0.19799296,87123.0,87102.0,0.01086033]
[1766124797998,0.00017223,87121.0,87104.0,0.00017223]
[1766124798602,0.00017223,87121.0,87105.0,0.0114877]
[1766124800201,0.00017223,87121.0,87104.0,0.00017223]
[1766124800709,0.00017223,87121.0,87105.0,0.0114877]
[1766124802013,0.19799296,87120.0,87105.0,0.0114877]
[1766124803914,0.00576,87119.0,87105.0,0.0114877]
[1766124804614,0.00576,87119.0,87104.0,0.00017223]
[1766124805007,0.00576,87119.0,87104.0,0.01166013]
[1766124805807,0.00576,87119.0,87104.0,0.00017223]
[1766124806203,0.0114867,87113.0,87087.0,0.01149]
[1766124806420,0.19799296,87110.0,87088.0,0.00576]
[1766124806607,0.19799296,87100.0,87088.0,0.00576]
[1766124808412,0.19799296,87100.0,87085.0,0.00017223]
[1766124810306,0.00576,87099.0,87085.0,0.00017223]
[1766124810509,0.00576,87099.0,87085.0,2.23e-06]
[1766124810510,0.19799296,87095.0,87085.0,2.23e-06]
[1766124810712,0.00576,87094.0,87077.0,0.00576]
[1766124810906,0.19799296,87090.0,87077.0,0.00576]
[1766124811106,0.20375296,87090.0,87062.0,9.808e-05]
[1766124811311,0.20375296,87090.0,87063.0,2.41856]
[1766124811623,0.00017223,87085.0,87070.0,0.0114924]
[1766124812011,0.00017223,87085.0,87071.0,0.00576]
[1766124812213,0.19799296,87081.0,87071.0,0.00576]
[1766124813313,0.00017223,87085.0,87071.0,0.00576]
[1766124813917,0.19799296,87081.0,87071.0,0.00576]
[1766124814117,0.00017223,87085.0,87071.0,0.00576]
[1766124815623,0.00017223,87085.0,87070.0,0.00576]
[1766124815624,0.19806274,87081.0,87070.0,0.00576]
[1766124820022,0.00593223,87085.0,87070.0,0.00576]
[1766124820224,0.19806274,87080.0,87070.0,0.00576]
[1766124822320,0.00593223,87085.0,87070.0,0.00576]
[1766124822527,0.19806274,87080.0,87070.0,0.00576]
[1766124823726,0.19806274,87080.0,87071.0,0.0114923]
[1766124825630,0.00593223,87085.0,87070.0,0.00576]
[1766124826822,0.00593223,87085.0,87076.0,0.0114916]
[1766124828030,0.00593223,87085.0,87073.0,0.011492]
[1766124829134,0.00017223,87085.0,87073.0,0.011492]
[1766124834532,0.00017223,87085.0,87070.0,0.00576]
[1766124834735,0.00017223,87085.0,87076.0,0.0114916]
[1766124837638,0.00017223,87085.0,87072.0,0.0114921]
[1766124837833,0.19806274,87082.0,87070.0,0.00576]
[1766124840138,0.19806274,87082.0,87071.0,0.0114922]
[1766124840538,0.19806274,87082.0,87074.0,0.0114919]
[1766124841934,0.00017223,87085.0,87074.0,0.0114919]
[1766124842134,0.19806274,87084.0,87074.0,0.0114919]
[1766124842737,0.19806274,87084.0,87070.0,0.0172523]
[1766124843037,0.19806274,87080.0,87070.0,0.0172523]
[1766124843437,0.19806274,87080.0,87072.0,0.011492]
[1766124844348,0.19806274,87080.0,87070.0,0.00576]
[1766124844640,4e-08,87080.0,87076.0,0.0114915]
[1766124844948,3e-08,87085.0,87082.0,0.0114907]
[1766124845139,3e-08,87085.0,87084.0,0.0114906]
[1766124846444,3e-08,87085.0,87083.0,0.00576]
[1766124848140,3e-08,87085.0,87083.0,0.0172507]
[1766124852746,0.00576,87104.0,87091.0,0.0114896]
[1766124853742,0.00576,87104.0,87090.0,0.00576]
[1766124853743,0.19806274,87101.0,87090.0,0.00576]
[1766124860451,0.19806274,87101.0,87091.0,0.0114896]
[1766124861048,0.00576,87104.0,87091.0,0.0114896]
[1766124861252,0.19806274,87101.0,87091.0,0.0114896]
[1766124861452,0.19806274,87101.0,87090.0,0.00576]
[1766124864460,0.00576,87100.0,87089.0,2.23e-06]
[1766124865159,0.20382274,87100.0,87089.0,2.23e-06]
[1766124866059,0.20382274,87100.0,87089.0,0.01149203]
[1766124867753,0.20382274,87100.0,87092.0,0.0114895]
[1766124867953,0.00576,87100.0,87092.0,0.0114895]
[1766124868153,0.00576,87100.0,87089.0,0.01149213]
[1766124871262,0.00576,87100.0,87091.0,0.0114895]
[1766124871757,0.00576,87100.0,87094.0,0.0114892]
[1766124876364,0.00576,87100.0,87091.0,0.0114896]
[1766124877759,0.00576,87100.0,87093.0,0.0114893]
[1766124878961,0.00576,87103.0,87093.0,0.0114893]
[1766124880364,0.00576,87103.0,87089.0,2.23e-06]
[1766124880663,0.19797456,87100.0,87089.0,2.23e-06]
[1766124881054,0.19797456,87100.0,87089.0,0.01149213]
[1766124881966,0.00576,87103.0,87089.0,0.01149213]
[1766124882863,0.00576,87103.0,87089.0,2.23e-06]
[1766124884168,0.19797456,87100.0,87089.0,2.23e-06]
[1766124886460,0.19797456,87099.0,87079.0,0.0114912]
[1766124886667,0.19797456,87099.0,87080.0,0.00576]
[1766124886861,0.00576,87098.0,87080.0,0.00576]
[1766124887062,0.19797456,87090.0,87080.0,0.00576]
[1766124887855,0.00576,87098.0,87081.0,0.0114909]
[1766124889664,0.00576,87098.0,87082.0,0.00576]
[1766124890263,0.00576,87098.0,87083.0,0.0114907]
[1766124901364,0.00576,87098.0,87087.0,0.0114901]
[1766124902670,0.00576,87098.0,87091.0,0.0114895]
[1766124903272,0.00576,87098.0,87088.0,0.01149]
[1766124906976,0.00576,87098.0,87082.0,0.00576]
[1766124907570,0.0114889,87097.0,87073.0,2.41328]
[1766124907770,0.19797456,87090.0,87074.0,0.0172519]
[1766124911686,0.19797456,87090.0,87077.0,0.0114914]
[1766124911978,0.00576,87093.0,87074.0,0.00576]
[1766124912769,0.00017223,87106.0,87074.0,0.00576]
[1766124912971,0.00017223,87106.0,87082.0,0.0114907]
[1766124913170,0.00017223,87106.0,87083.0,0.00576]
[1766124913372,2.23e-06,87106.0,87083.0,0.00576]
[1766124914274,2.23e-06,87106.0,87096.0,0.0114889]
[1766124914580,2.23e-06,87106.0,87097.0,0.00576]
[1766124918180,2.23e-06,87106.0,87086.0,0.00017036]
[1766124918370,0.19797456,87100.0,87086.0,0.00017036]
[1766124918572,0.19797456,87096.0,87077.0,0.0114914]
[1766124918775,0.0114882,87102.0,87077.0,0.0114914]
[1766124918776,0.19797456,87090.0,87078.0,0.00576]
[1766124919881,0.00576,87095.0,87078.0,0.00576]
[1766124920869,0.19797456,87090.0,87078.0,0.00576]
[1766124921074,0.00576,87095.0,87079.0,0.0114912]
[1766124922882,0.00576,87095.0,87082.0,0.0114907]
[1766124926085,2.23e-06,87106.0,87080.0,0.19797456]
[1766124926296,2.23e-06,87106.0,87085.0,0.0114903]
[1766124926599,0.00576223,87106.0,87087.0,0.0114901]
[1766124927287,0.06130612,87122.0,87086.0,0.00576]
[1766124927288,0.19797456,87140.0,87096.0,0.19797456]
[1766124927486,0.00576,87137.0,87118.0,0.0114861]
[1766124928080,0.00017223,87136.0,87115.0,0.00576]
[1766124928384,0.00017223,87136.0,87116.0,0.0114862]
[1766124928584,0.00017223,87136.0,87119.0,0.0114859]
[1766124929790,0.00017223,87136.0,87115.0,0.00576]
[1766124930190,0.00017223,87136.0,87116.0,0.0114862]
[1766124930786,0.19797456,87130.0,87115.0,0.00576]
[1766124931190,0.00576,87131.0,87115.0,0.00576]
[1766124931390,0.19797456,87130.0,87115.0,0.00576]
[1766124935094,0.19797456,87130.0,87116.0,0.0114863]
[1766124936092,0.19797456,87130.0,87115.0,0.00576]
[1766124937509,0.19786313,87130.0,87115.0,0.00576]
[1766124938409,0.19786313,87130.0,87115.0,0.0172464]
[1766124939207,0.19786313,87130.0,87115.0,0.00576]
[1766124940312,0.19786313,87125.0,87115.0,0.00576]
[1766124941914,0.19786313,87125.0,87116.0,0.0114863]
[1766124942115,0.00576,87127.0,87116.0,0.0114863]
[1766124943014,0.00576,87127.0,87115.0,0.00576]
[1766124943817,0.19786313,87125.0,87103.0,0.0114879]
[1766124944111,0.00017223,87123.0,87103.0,0.0114879]
[1766124944417,0.00017223,87123.0,87100.0,2.41272]
[1766124944418,0.19786313,87113.0,87105.0,0.0114878]
[1766124944608,0.19786313,87113.0,87104.0,0.0036]
[1766124944609,0.19786313,87115.0,87104.0,0.0036]
[1766124944810,0.19786313,87115.0,87102.0,0.0114882]
[1766124945009,0.19786313,87112.0,87102.0,0.0114882]
[1766124945410,0.19786313,87112.0,87101.0,0.00576]
[1766124946419,0.19786313,87112.0,87092.0,0.0114895]
[1766124946620,0.00017223,87111.0,87093.0,0.00576]
[1766124947012,0.19786313,87103.0,87074.0,2.41272]
[1766124947313,0.19786313,87090.0,87078.0,0.0114913]
[1766124947520,0.19786313,87090.0,87079.0,0.00576]
[1766124951520,0.00576,87089.0,87079.0,0.00576]
[1766124961720,0.00576,87089.0,87072.0,0.0114921]
[1766124961922,0.19786313,87081.0,87062.0,9.808e-05]
[1766124962217,0.19786313,87072.0,87063.0,0.00408]
[1766124962740,0.00576,87082.0,87063.0,0.00408]
[1766124962741,0.00576,87082.0,87066.0,0.0114929]
[1766124963018,0.19786313,87080.0,87066.0,0.0114929]
[1766124963916,0.19786313,87080.0,87064.0,0.0114932]
[1766124964523,0.19786313,87074.0,87063.0,0.00408]
[1766124964825,0.19786313,87074.0,87063.0,0.00576]
[1766124965218,0.00576,87073.0,87058.0,1.03e-06]
[1766124965416,0.19786313,87070.0,87058.0,1.03e-06]
[1766124965611,0.00576,87069.0,87049.0,2.41336]
[1766124965812,0.19786313,87060.0,87040.0,2.41336]
[1766124966028,0.19786313,87060.0,87045.0,0.0114956]
[1766124966231,9.808e-05,87059.0,87045.0,0.0114956]
[1766124966430,9.808e-05,87059.0,87044.0,0.00576]
[1766124966431,0.19786313,87055.0,87044.0,0.00576]
[1766124966731,0.0114946,87054.0,87025.0,2.4248983]
[1766124966920,0.19786313,87041.0,87032.0,0.0114974]
[1766124967120,0.19786313,87041.0,87028.0,0.0172579]
[1766124967629,0.00576,87045.0,87028.0,0.0172579]
[1766124969030,0.00576,87045.0,87028.0,0.00576]
[1766124969235,0.00576,87045.0,87028.0,0.0172579]
[1766124970525,0.00576,87048.0,87034.0,0.0114971]
[1766124970721,0.00576,87048.0,87035.0,0.00576]
[1766124972230,0.00576,87048.0,87036.0,0.0114969]
[1766124972826,0.00576,87048.0,87039.0,0.0114964]
[1766124974826,0.00576,87048.0,87035.0,0.0172569]
[1766124975527,0.19803546,87050.0,87035.0,0.0172569]
[1766124977425,0.19803546,87050.0,87038.0,0.0114965]
[1766124978132,0.00017233,87050.0,87035.0,0.00576]
[1766124978331,0.19803546,87050.0,87035.0,0.00576]
[1766124979347,0.19803546,87050.0,87040.0,0.0114962]
[1766124979632,0.00017233,87050.0,87040.0,0.0114962]
[1766124979826,0.19803546,87050.0,87040.0,0.0114962]
[1766124980023,0.19803546,87050.0,87036.0,0.0114968]
[1766124981130,0.19803546,87050.0,87038.0,0.0114966]
[1766124983034,0.19803546,87050.0,87035.0,0.00576]
[1766124983430,0.00017233,87050.0,87036.0,0.0114968]
[1766124983734,0.19803546,87050.0,87036.0,0.0114968]
[1766124985035,0.19803546,87050.0,87035.0,0.00576]
[1766124985641,0.19786313,87045.0,87034.0,0.00576]
[1766124985838,0.20362313,87044.0,87034.0,0.00576]
[1766124986738,0.00576,87044.0,87034.0,0.00576]
[1766124987532,0.00576,87044.0,87037.0,0.0114967]
[1766124988842,1e-07,87044.0,87039.0,0.0114964]
[1766124993452,1e-07,87044.0,87034.0,0.00576]
[1766124993646,1e-07,87044.0,87036.0,0.0114969]
[1766124993950,0.19803546,87050.0,87036.0,0.0114969]
[1766124994250,0.00576,87049.0,87036.0,0.0114969]
[1766124995540,0.00576,87049.0,87034.0,0.00576]
[1766124995848,0.00576,87049.0,87035.0,0.011497]
[1766124997450,0.00576,87049.0,87034.0,0.00576]
[1766124998248,0.00576,87049.0,87035.0,0.011497]
[1766124998857,0.00576,87049.0,87034.0,0.00576]
[1766125002257,0.19822529,87044.0,87025.0,2.44531463]
[1766125002556,0.19822529,87040.0,87026.0,0.00576]
[1766125002761,0.19822529,87040.0,87026.0,0.0172581]
[1766125005666,0.00576,87041.0,87015.0,0.03663463]
[1766125005667,0.19822529,87036.0,87015.0,0.03663463]
[1766125005853,0.19822529,87030.0,87013.0,0.00012198]
[1766125006158,0.00576,87029.0,87013.0,0.00012198]
[1766125007254,0.00292,87029.0,87013.0,0.00012198]
[1766125008052,0.00292,87029.0,87017.0,0.0114993]
[1766125008247,0.00292,87029.0,87013.0,0.01162188]
[1766125011847,0.00292,87029.0,87013.0,0.00012198]
[1766125012260,0.00292,87029.0,87020.0,0.011499]
[1766125012649,0.00292,87029.0,87016.0,0.0114994]
[1766125014862,0.00292,87029.0,87017.0,0.0114994]
[1766125018557,0.00292,87029.0,87013.0,0.00012198]
[1766125018763,0.00292,87029.0,87020.0,0.0114989]
[1766125018964,0.00292,87029.0,87013.0,0.00012198]
[1766125020170,0.00292,87029.0,87022.0,0.0114986]
[1766125020770,0.00017233,87030.0,87022.0,0.0114986]
[1766125022165,9.808e-05,87039.0,87019.0,0.00576]
[1766125022472,9.808e-05,87039.0,87025.0,0.0114982]
[1766125022872,9.808e-05,87039.0,87027.0,0.011498]
[1766125023863,9.808e-05,87039.0,87024.0,0.00017233]
[1766125024063,9.808e-05,87039.0,87025.0,0.0114983]
[1766125024372,9.808e-05,87039.0,87024.0,0.00017233]
[1766125025270,9.808e-05,87039.0,87024.0,0.01167073]
[1766125027073,9.808e-05,87039.0,87029.0,0.0114977]
[1766125029376,9.808e-05,87039.0,87025.0,0.0114982]
[1766125030577,9.808e-05,87039.0,87024.0,0.00017233]
[1766125030775,9.808e-05,87039.0,87024.0,0.01167073]
[1766125030965,9.808e-05,87039.0,87024.0,0.00017233]
[1766125032177,9.808e-05,87039.0,87027.0,0.011498]
[1766125033885,9.808e-05,87039.0,87024.0,0.00017233]
[1766125035387,9.808e-05,87039.0,87024.0,2.33e-06]
[1766125037178,9.808e-05,87039.0,87024.0,0.01150073]
[1766125037484,9.808e-05,87039.0,87024.0,2.33e-06]
[1766125040001,0.25999704,87060.0,87024.0,2.33e-06]
[1766125040295,0.00072,87057.0,87035.0,0.0114969]
[1766125041391,0.00017233,87055.0,87035.0,0.0114969]
[1766125041899,0.19822529,87050.0,87027.0,0.0114981]
[1766125042199,0.19822529,87040.0,87024.0,2.33e-06]
[1766125042389,0.00576,87049.0,87026.0,0.0054]
[1766125042587,0.19822529,87040.0,87025.0,0.00576]
[1766125042788,0.19822529,87035.0,87024.0,2.33e-06]
[1766125044804,0.19822529,87034.0,87024.0,2.33e-06]
[1766125044999,0.00576,87037.0,87024.0,2.33e-06]
[1766125045207,0.19822529,87034.0,87024.0,2.33e-06]
[1766125045406,0.00576,87037.0,87024.0,2.33e-06]
[1766125045600,0.19822529,87034.0,87024.0,2.33e-06]
[1766125047108,0.19822529,87034.0,87013.0,0.00012198]
[1766125047405,0.00576,87037.0,87014.0,0.0114998]
[1766125047606,0.19822529,87030.0,87014.0,0.0114998]
[1766125047905,0.0054,87029.0,87014.0,0.0114998]
[1766125048694,0.0054,87029.0,87013.0,0.00029431]
[1766125052010,0.0054,87029.0,87013.0,0.01179421]
[1766125056707,0.0054,87029.0,87013.0,0.00029431]
[1766125057012,0.09254794,87048.0,87013.0,0.00029431]
[1766125057013,0.00272,87038.0,87028.0,0.0114979]
[1766125057205,0.00576,87043.0,87031.0,0.0114976]
[1766125058509,0.00576,87043.0,87028.0,0.01167023]
[1766125059513,0.19823313,87040.0,87031.0,0.0114975]
[1766125060009,0.19823313,87040.0,87028.0,0.00017233]
[1766125062008,0.19823313,87040.0,87028.0,0.01167023]
[1766125067220,0.19823313,87040.0,87031.0,0.0114975]
[1766125069310,0.19823313,87040.0,87028.0,0.00017233]
[1766125069510,0.19823313,87040.0,87029.0,0.0114978]
[1766125069813,0.00017233,87046.0,87036.0,0.0114968]
[1766125070214,0.00576,87045.0,87036.0,0.0114968]
[1766125071209,0.00576,87045.0,87028.0,0.00017233]
[1766125071210,0.00576,87045.0,87032.0,0.0114973]
[1766125071516,0.19823313,87042.0,87032.0,0.0114973]
[1766125072020,0.00576,87045.0,87035.0,0.011497]
[1766125072522,0.00576,87045.0,87029.0,0.0114978]
[1766125072716,0.00576,87045.0,87028.0,0.00017233]
[1766125072717,0.00576,87045.0,87031.0,0.0114974]
[1766125072916,0.19823313,87041.0,87031.0,0.0114974]
[1766125073311,0.19823313,87041.0,87028.0,0.00017233]
[1766125073820,0.19823313,87041.0,87031.0,0.0114974]
[1766125074320,0.00576,87045.0,87031.0,0.0114974]
[1766125074928,0.19823313,87041.0,87028.0,0.00017233]
[1766125076321,0.19823313,87041.0,87029.0,0.0114978]